[Event "Championnat d'Europe de Blitz"]
[Date "2024.12.09"]
[White "Hamitevici, Vladimir"]
[Black "Alonso Rosell, Alvar"]
[WhiteElo "2423"]
[BlackElo "2532"]
[Round "3.12"]
[Result "0-1"]
[TimeControl "180+2"]

1. c4 {[%emt 00:14:43] [%clk 00:03:02]} c5 {[%emt 00:00:04] [%clk 00:03:01]} 2.
g3 {[%emt 00:00:04] [%clk 00:03:00]} Nf6 {[%emt 00:00:02] [%clk 00:03:02]} 3.
Bg2 {[%emt 00:00:01] [%clk 00:03:00]} Nc6 {[%emt 00:00:03] [%clk 00:03:02]} 4.
Nc3 {[%emt 00:00:06] [%clk 00:02:55]} g6 {[%emt 00:00:03] [%clk 00:03:01]} 5. d3
{[%emt 00:00:08] [%clk 00:02:49]} d6 {[%emt 00:00:07] [%clk 00:02:56]} 6. b3
{[%emt 00:00:05] [%clk 00:02:46]} Bg7 {[%emt 00:00:06] [%clk 00:02:52]} 7. Bb2
{[%emt 00:00:01] [%clk 00:02:47]} Bd7 {[%emt 00:00:07] [%clk 00:02:48]} 8. e3
{[%emt 00:00:28] [%clk 00:02:20]} Rb8 {[%emt 00:00:19] [%clk 00:02:31]} 9. Nge2
{[%emt 00:00:08] [%clk 00:02:15]} h5 {[%emt 00:00:18] [%clk 00:02:15]} 10. h3
{[%emt 00:00:20] [%clk 00:01:56]} a6 {[%emt 00:00:02] [%clk 00:02:15]} 11. Qd2
{[%emt 00:00:01] [%clk 00:01:57]} b5 {[%emt 00:00:21] [%clk 00:01:56]} 12. Nd5
{[%emt 00:00:04] [%clk 00:01:55]} e6 {[%emt 00:00:10] [%clk 00:01:47]} 13. Ndc3
{[%emt 00:00:19] [%clk 00:01:37]} Qe7 {[%emt 00:00:19] [%clk 00:01:31]} 14. O-O
{[%emt 00:00:22] [%clk 00:01:18]} e5 {[%emt 00:00:17] [%clk 00:01:15]} 15. f4
{[%emt 00:00:16] [%clk 00:01:05]} O-O {[%emt 00:00:19] [%clk 00:00:57]} 16. Rae1
{[%emt 00:00:08] [%clk 00:00:59]} Qd8 {[%emt 00:00:16] [%clk 00:00:43]} 17. Kh2
{[%emt 00:00:05] [%clk 00:00:56]} Nh7 {[%emt 00:00:21] [%clk 00:00:25]} 18. Ne4
{[%emt 00:00:43] [%clk 00:00:15]} f5 {[%emt 00:00:01] [%clk 00:00:25]} 19. Nxd6
{[%emt 00:00:05] [%clk 00:00:12]} Qe7 {[%emt 00:00:02] [%clk 00:00:26]} 20. Bd5+
{[%emt 00:00:07] [%clk 00:00:07]} Kh8 {[%clk 00:00:27]} 21. Nf7+ {[%emt
00:00:06] [%clk 00:00:03]} Rxf7 {[%clk 00:00:28]} 22. Bxf7 {[%emt 00:00:01]
[%clk 00:00:04]} Qxf7 {[%emt 00:00:01] [%clk 00:00:29]} 23. fxe5 {[%emt
00:00:04] [%clk 00:00:00]} 0-1

[Site "Europe Echecs"]

[Event "Championnat d'Europe de Blitz"]
[Date "2024.12.09"]
[White "Pantsulaia, Levan"]
[Black "Krallis, Christos"]
[WhiteElo "2522"]
[BlackElo "2383"]
[Round "3.13"]
[Result "0-1"]
[TimeControl "180+2"]

1. Nf3 {[%emt 00:00:01] [%clk 00:03:03]} c5 {[%emt 00:00:07] [%clk 00:02:57]} 2.
c4 {[%emt 00:00:01] [%clk 00:03:04]} Nf6 {[%emt 00:00:09] [%clk 00:02:50]} 3. g3
{[%emt 00:00:02] [%clk 00:03:03]} g6 {[%emt 00:00:06] [%clk 00:02:47]} 4. b3
{[%emt 00:00:04] [%clk 00:03:01]} Bg7 {[%emt 00:00:03] [%clk 00:02:46]} 5. Bb2
{[%emt 00:00:01] [%clk 00:03:02]} O-O {[%emt 00:00:04] [%clk 00:02:44]} 6. Bg2
{[%emt 00:00:01] [%clk 00:03:03]} Nc6 {[%emt 00:00:12] [%clk 00:02:34]} 7. O-O
{[%emt 00:00:04] [%clk 00:03:02]} d6 {[%emt 00:00:05] [%clk 00:02:31]} 8. Nc3
{[%emt 00:00:07] [%clk 00:02:57]} Bf5 {[%emt 00:00:12] [%clk 00:02:20]} 9. d3
{[%emt 00:00:41] [%clk 00:02:18]} Qd7 {[%emt 00:00:02] [%clk 00:02:19]} 10. Qd2
{[%emt 00:00:05] [%clk 00:02:15]} Bh3 {[%emt 00:00:06] [%clk 00:02:16]} 11. Nd5
{[%emt 00:00:31] [%clk 00:01:46]} Bxg2 {[%emt 00:00:14] [%clk 00:02:04]} 12.
Kxg2 {[%emt 00:00:03] [%clk 00:01:45]} Nxd5 {[%emt 00:00:20] [%clk 00:01:46]}
13. cxd5 {[%emt 00:00:02] [%clk 00:01:46]} Nd4 {[%emt 00:00:04] [%clk 00:01:44]}
14. Ng1 {[%emt 00:00:55] [%clk 00:00:52]} e6 {[%emt 00:00:16] [%clk 00:01:30]}
15. e3 {[%emt 00:00:03] [%clk 00:00:51]} Nf5 {[%emt 00:00:01] [%clk 00:01:30]}
16. Bxg7 {[%emt 00:00:03] [%clk 00:00:51]} Nxg7 {[%emt 00:00:09] [%clk
00:01:22]} 17. dxe6 {[%emt 00:00:03] [%clk 00:00:51]} fxe6 {[%emt 00:00:06]
[%clk 00:01:17]} 18. f4 {[%emt 00:00:05] [%clk 00:00:48]} e5 {[%emt 00:00:39]
[%clk 00:00:41]} 19. Nf3 {[%emt 00:00:13] [%clk 00:00:37]} exf4 {[%emt 00:00:02]
[%clk 00:00:41]} 20. exf4 {[%emt 00:00:06] [%clk 00:00:33]} Rae8 {[%emt
00:00:01] [%clk 00:00:41]} 21. Rae1 {[%emt 00:00:02] [%clk 00:00:34]} Qc6 {[%clk
00:00:42]} 22. Kf2 {[%emt 00:00:16] [%clk 00:00:20]} Qd5 {[%emt 00:00:02] [%clk
00:00:41]} 23. Qc3 {[%emt 00:00:06] [%clk 00:00:17]} Nf5 {[%emt 00:00:02] [%clk
00:00:41]} 24. Qc4 {[%clk 00:00:18]} Qf7 {[%emt 00:00:05] [%clk 00:00:38]} 25.
Ng5 {[%emt 00:00:04] [%clk 00:00:17]} Qxc4 {[%emt 00:00:09] [%clk 00:00:30]} 26.
dxc4 {[%clk 00:00:18]} Nd4 {[%emt 00:00:01] [%clk 00:00:31]} 27. Rxe8 {[%emt
00:00:08] [%clk 00:00:13]} Rxe8 {[%emt 00:00:01] [%clk 00:00:32]} 28. Re1 {[%emt
00:00:01] [%clk 00:00:14]} Rxe1 {[%emt 00:00:10] [%clk 00:00:23]} 29. Kxe1
{[%clk 00:00:15]} Nf5 {[%emt 00:00:09] [%clk 00:00:16]} 30. Kf2 {[%emt 00:00:06]
[%clk 00:00:11]} b6 {[%emt 00:00:06] [%clk 00:00:13]} 31. Ne4 {[%emt 00:00:02]
[%clk 00:00:10]} Kf8 {[%emt 00:00:06] [%clk 00:00:09]} 32. g4 {[%emt 00:00:01]
[%clk 00:00:11]} Nh6 {[%clk 00:00:10]} 33. Kf3 {[%emt 00:00:05] [%clk 00:00:09]}
Nf7 {[%emt 00:00:03] [%clk 00:00:09]} 34. Nf6 {[%emt 00:00:01] [%clk 00:00:10]}
h6 {[%emt 00:00:03] [%clk 00:00:08]} 35. Ke4 {[%emt 00:00:02] [%clk 00:00:10]}
Ke7 {[%emt 00:00:02] [%clk 00:00:09]} 36. Ng8+ {[%emt 00:00:03] [%clk 00:00:09]}
Kf8 {[%emt 00:00:01] [%clk 00:00:09]} 37. Nf6 {[%emt 00:00:01] [%clk 00:00:10]}
Ke7 {[%clk 00:00:11]} 38. Nd5+ {[%emt 00:00:01] [%clk 00:00:11]} Kd7 {[%emt
00:00:03] [%clk 00:00:09]} 39. h4 {[%emt 00:00:02] [%clk 00:00:11]} Nd8 {[%emt
00:00:07] [%clk 00:00:05]} 40. h5 {[%emt 00:00:04] [%clk 00:00:08]} gxh5 {[%emt
00:00:02] [%clk 00:00:06]} 41. gxh5 {[%emt 00:00:01] [%clk 00:00:09]} Ke6 {[%emt
00:00:02] [%clk 00:00:06]} 42. Nc7+ {[%emt 00:00:01] [%clk 00:00:10]} Kd7 {[%emt
00:00:01] [%clk 00:00:06]} 43. Nb5 {[%emt 00:00:02] [%clk 00:00:10]} a6 {[%emt
00:00:02] [%clk 00:00:06]} 44. Nc3 {[%emt 00:00:01] [%clk 00:00:11]} Ne6 {[%emt
00:00:03] [%clk 00:00:05]} 45. Nd5 {[%emt 00:00:03] [%clk 00:00:10]} Ng7 {[%clk
00:00:06]} 46. Nxb6+ {[%emt 00:00:05] [%clk 00:00:08]} Ke6 {[%emt 00:00:03]
[%clk 00:00:05]} 47. Na8 {[%emt 00:00:05] [%clk 00:00:05]} Kd7 {[%emt 00:00:03]
[%clk 00:00:04]} 48. Nb6+ {[%emt 00:00:01] [%clk 00:00:06]} Ke6 {[%clk
00:00:06]} 49. Na4 {[%emt 00:00:02] [%clk 00:00:06]} Nxh5 {[%emt 00:00:01] [%clk
00:00:06]} 50. f5+ {[%emt 00:00:02] [%clk 00:00:05]} Kf7 {[%emt 00:00:03] [%clk
00:00:05]} 51. Kd5 {[%emt 00:00:03] [%clk 00:00:05]} Nf6+ {[%emt 00:00:03] [%clk
00:00:04]} 52. Kxd6 {[%clk 00:00:06]} h5 {[%emt 00:00:02] [%clk 00:00:04]} 53.
Nxc5 {[%emt 00:00:04] [%clk 00:00:04]} h4 {[%emt 00:00:01] [%clk 00:00:06]} 54.
Ne6 {[%clk 00:00:05]} Ne4+ {[%emt 00:00:03] [%clk 00:00:05]} 55. Ke5 {[%emt
00:00:01] [%clk 00:00:06]} h3 {[%clk 00:00:06]} 56. Kxe4 {[%emt 00:00:03] [%clk
00:00:04]} h2 {[%clk 00:00:07]} 57. Ke5 {[%emt 00:00:01] [%clk 00:00:05]} h1=Q
{[%emt 00:00:03]} 58. c5 {[%clk 00:00:06]} Qe1+ {[%emt 00:00:01] [%clk
00:00:08]} 59. Kd6 {[%clk 00:00:07]} Qd2+ {[%emt 00:00:01] [%clk 00:00:09]} 60.
Ke5 {[%emt 00:00:02] [%clk 00:00:08]} Qc3+ {[%clk 00:00:09]} 61. Kd6 {[%emt
00:00:02] [%clk 00:00:08]} Qb4 {[%emt 00:00:02] [%clk 00:00:10]} 62. Kd5 {[%emt
00:00:03] [%clk 00:00:07]} Ke7 {[%emt 00:00:01] [%clk 00:00:10]} 63. Nd4 {[%emt
00:00:02] [%clk 00:00:07]} Qd2 {[%emt 00:00:02] [%clk 00:00:10]} 64. a4 {[%emt
00:00:02] [%clk 00:00:08]} Qd3 {[%emt 00:00:01] [%clk 00:00:10]} 65. Ke5 {[%emt
00:00:02] [%clk 00:00:09]} Kd7 {[%emt 00:00:04] [%clk 00:00:08]} 66. Kd5 {[%emt
00:00:01] [%clk 00:00:09]} a5 {[%emt 00:00:04] [%clk 00:00:07]} 67. Ke5 {[%emt
00:00:03] [%clk 00:00:07]} Qe3+ {[%emt 00:00:02] [%clk 00:00:07]} 68. Kd5 {[%clk
00:00:08]} Kc7 {[%clk 00:00:08]} 69. Nb5+ {[%emt 00:00:03] [%clk 00:00:08]} Kb7
{[%emt 00:00:01] [%clk 00:00:09]} 70. Nd4 {[%emt 00:00:02] [%clk 00:00:09]} Qe8
{[%emt 00:00:02] [%clk 00:00:09]} 71. Kc4 {[%emt 00:00:03] [%clk 00:00:08]} Qf7+
{[%emt 00:00:03] [%clk 00:00:07]} 72. Kc3 {[%emt 00:00:07] [%clk 00:00:03]} Qd5
{[%emt 00:00:01] [%clk 00:00:08]} 73. Ne6 {[%emt 00:00:01] [%clk 00:00:04]} Qxf5
{[%emt 00:00:02] [%clk 00:00:08]} 74. c6+ {[%clk 00:00:05]} Kb6 {[%emt 00:00:03]
[%clk 00:00:08]} 75. Nd4 {[%clk 00:00:06]} Qc5+ {[%emt 00:00:01] [%clk
00:00:08]} 76. Kd3 {[%clk 00:00:07]} Qc1 {[%emt 00:00:02] [%clk 00:00:08]} 77.
Ke4 {[%emt 00:00:01] [%clk 00:00:08]} Qc5 {[%emt 00:00:03] [%clk 00:00:07]} 78.
Kd3 {[%emt 00:00:02] [%clk 00:00:09]} Qd5 {[%clk 00:00:07]} 79. Kc3 {[%emt
00:00:05] [%clk 00:00:07]} Kc5 {[%emt 00:00:02] [%clk 00:00:07]} 0-1

[Site "Europe Echecs"]

[Event "Championnat d'Europe de Blitz"]
[Date "2024.12.09"]
[White "Nevednichy, Vladislav"]
[Black "Muradli, Mahammad"]
[WhiteElo "2451"]
[BlackElo "2588"]
[Round "3.14"]
[Result "0-1"]
[TimeControl "180+2"]

1. e4 {[%emt 00:00:03] [%clk 00:03:02]} c5 {[%emt 00:00:53] [%clk 00:02:07]} 2.
Nf3 {[%emt 00:00:05] [%clk 00:03:02]} d6 {[%emt 00:00:01] [%clk 00:02:08]} 3.
Bb5+ {[%emt 00:00:02] [%clk 00:03:02]} Bd7 {[%clk 00:02:09]} 4. c4 {[%emt
00:00:02] [%clk 00:03:02]} Nf6 {[%clk 00:02:10]} 5. Nc3 {[%emt 00:00:01] [%clk
00:03:03]} g6 {[%clk 00:02:11]} 6. d4 {[%emt 00:00:04] [%clk 00:03:01]} cxd4
{[%emt 00:00:01] [%clk 00:02:12]} 7. Nxd4 {[%emt 00:00:02] [%clk 00:03:02]} Nc6
{[%emt 00:00:04] [%clk 00:02:10]} 8. O-O {[%emt 00:00:17] [%clk 00:02:46]} Bg7
{[%emt 00:00:02] [%clk 00:02:11]} 9. Bxc6 {[%emt 00:00:09] [%clk 00:02:38]} bxc6
{[%emt 00:00:03] [%clk 00:02:10]} 10. h3 {[%emt 00:00:08] [%clk 00:02:32]} O-O
{[%emt 00:00:22] [%clk 00:01:50]} 11. Be3 {[%emt 00:00:10] [%clk 00:02:24]} c5
{[%emt 00:00:08] [%clk 00:01:45]} 12. Nde2 {[%emt 00:00:11] [%clk 00:02:14]} Bc6
{[%emt 00:00:05] [%clk 00:01:42]} 13. f3 {[%emt 00:00:08] [%clk 00:02:07]} Nd7
{[%emt 00:00:02] [%clk 00:01:43]} 14. Qd2 {[%emt 00:00:06] [%clk 00:02:03]} Re8
{[%emt 00:00:01] [%clk 00:01:44]} 15. b3 {[%emt 00:00:07] [%clk 00:01:58]} Qb6
{[%emt 00:00:21] [%clk 00:01:25]} 16. Rab1 {[%emt 00:00:07] [%clk 00:01:54]} Qb7
{[%emt 00:00:12] [%clk 00:01:15]} 17. Bh6 {[%emt 00:00:06] [%clk 00:01:48]} Bh8
{[%emt 00:00:04] [%clk 00:01:12]} 18. h4 {[%emt 00:00:07] [%clk 00:01:45]} Ne5
{[%emt 00:00:10] [%clk 00:01:04]} 19. h5 {[%emt 00:00:07] [%clk 00:01:39]} Bd7
{[%emt 00:00:02] [%clk 00:01:04]} 20. Nd5 {[%emt 00:00:08] [%clk 00:01:34]} Nc6
{[%emt 00:00:10] [%clk 00:00:57]} 21. Bg5 {[%emt 00:00:01] [%clk 00:01:34]} Be6
{[%emt 00:00:13] [%clk 00:00:46]} 22. hxg6 {[%emt 00:00:02] [%clk 00:01:34]}
hxg6 {[%emt 00:00:01] [%clk 00:00:47]} 23. Be3 {[%emt 00:00:10] [%clk 00:01:26]}
a5 {[%emt 00:00:16] [%clk 00:00:33]} 24. a4 {[%emt 00:00:06] [%clk 00:01:22]}
Bxd5 {[%emt 00:00:08] [%clk 00:00:27]} 25. exd5 {[%emt 00:00:02] [%clk
00:01:22]} Nb4 {[%emt 00:00:05] [%clk 00:00:24]} 26. Nc3 {[%emt 00:00:13] [%clk
00:01:11]} e6 {[%emt 00:00:16] [%clk 00:00:10]} 27. Ne4 {[%emt 00:00:08] [%clk
00:01:05]} Qc7 {[%emt 00:00:09] [%clk 00:00:04]} 28. dxe6 {[%emt 00:00:05] [%clk
00:01:01]} Rxe6 {[%clk 00:00:05]} 29. Bf4 {[%emt 00:00:03] [%clk 00:01:00]} Bd4+
{[%clk 00:00:07]} 30. Kh2 {[%emt 00:00:02] [%clk 00:00:59]} Rae8 {[%emt
00:00:01] [%clk 00:00:08]} 31. g4 {[%emt 00:00:14] [%clk 00:00:47]} f6 {[%clk
00:00:10]} 32. Kg3 {[%emt 00:00:05] [%clk 00:00:44]} g5 {[%emt 00:00:02] [%clk
00:00:10]} 33. Be3 {[%emt 00:00:06] [%clk 00:00:40]} d5+ {[%clk 00:00:11]} 34.
Kg2 {[%emt 00:00:04] [%clk 00:00:37]} dxe4 {[%emt 00:00:07] [%clk 00:00:07]} 35.
f4 {[%emt 00:00:05] [%clk 00:00:33]} Bxe3 {[%emt 00:00:02] [%clk 00:00:08]} 36.
Qxe3 {[%clk 00:00:34]} gxf4 {[%emt 00:00:03] [%clk 00:00:08]} 37. Rxf4 {[%emt
00:00:01] [%clk 00:00:35]} Nc2 {[%clk 00:00:09]} 38. Qg3 {[%emt 00:00:04] [%clk
00:00:32]} Nd4 {[%emt 00:00:05] [%clk 00:00:07]} 39. Re1 {[%emt 00:00:06] [%clk
00:00:28]} e3 {[%clk 00:00:08]} 40. g5 {[%emt 00:00:02] [%clk 00:00:28]} fxg5
{[%emt 00:00:04] [%clk 00:00:06]} 41. Qxg5+ {[%emt 00:00:04] [%clk 00:00:26]}
Qg7 {[%clk 00:00:07]} 42. Rg4 {[%clk 00:00:27]} Qxg5 {[%emt 00:00:02] [%clk
00:00:07]} 43. Rxg5+ {[%clk 00:00:28]} Kf7 {[%emt 00:00:02] [%clk 00:00:08]} 44.
Rxc5 {[%clk 00:00:29]} e2 {[%emt 00:00:03] [%clk 00:00:07]} 45. Rxa5 {[%emt
00:00:02] [%clk 00:00:30]} Nc2 {[%clk 00:00:09]} 46. Rc1 {[%emt 00:00:02] [%clk
00:00:31]} e1=Q {[%emt 00:00:02] [%clk 00:00:09]} 47. Rxe1 {[%emt 00:00:01]
[%clk 00:00:32]} Nxe1+ {[%emt 00:00:01] [%clk 00:00:09]} 0-1

[Site "Europe Echecs"]